Cogmind - Beta 14 @@@ ROGUE MODE // 2024.09.12 @ 20:09:11 Player: Tottery Result: Destroyed by G-34 Mercenary with Small Laser Performance ------------- Evolutions (1) 500 Regions Visited (3) 600 Robots Destroyed (28) 140 Value Destroyed (634) 634 Prototype IDs (2) 40 Alien Tech Used (0) 0 Bonus (0) 0 TOTAL SCORE: 1914 Bonus ------- None Cogmind --------- Core Integrity 0/400 Matter 280/300 Energy 100/100 System Corruption 10% Temperature Cool (7) Movement Hovering (60) Location -9/Materials Parts ------- > --- POWER (1) -------- (None) > --- PROPULSION (2) --- Improved Hover Unit > --- UTILITY (3) ------ Propulsion Shielding > --- WEAPON (3) ------- (None) > --- INVENTORY (5) ---- Aluminum Leg Large Battery (200) Large Battery (200) ECM Suite Datajack Peak State ------------ > --- POWER ------------ (None) > --- PROPULSION ------- Aluminum Leg Aluminum Leg > --- UTILITY ---------- Improved Heat Sink Improved Heat Sink Signal Interpreter > --- WEAPON ----------- Small Laser Light Assault Rifle > --- INVENTORY -------- Aluminum Leg Large Battery Large Battery ECM Suite Datajack [Rating: 11] Favorites ----------- Power Light Ion Engine Engine Light Ion Engine Propulsion Aluminum Leg Treads Light Treads Leg Aluminum Leg Hover Unit Improved Hover Unit Flight Unit Flight Unit Utility Small Storage Unit Device Terrain Scanner Storage Small Storage Unit Processor Signal Interpreter Protection Propulsion Shielding Weapon Assault Rifle Energy Gun Medium Laser Ballistic Gun Assault Rifle Build | -11 -10 -10 -9 ------- Run | Yrd Mat Min Mat Slots Evolved 2 | . . . 2 Power . | . . . . Propulsion . | . . . . Utility 1 | . . . 1 Weapon 1 | . . . 1 Parts Attached 32 | 7 15 2 8 Power 5 | 1 4 . . Engine 5 | 1 4 . . Core . | . . . . Reactor . | . . . . Propulsion 13 | 3 7 1 2 Treads 1 | 1 . . . Leg 10 | 2 7 1 . Wheel . | . . . . Hover 1 | . . . 1 Flight 1 | . . . 1 Utility 6 | 1 2 . 3 Device 3 | . 1 . 2 Storage 1 | 1 . . . Processor 1 | . 1 . . Hackware . | . . . . Protection 1 | . . . 1 Artifact . | . . . . Weapon 8 | 2 2 1 3 Energy Gun 4 | . 2 . 2 Energy Cannon . | . . . . Ballistic Gun 4 | 2 . 1 1 Ballistic Cannon . | . . . . Launcher . | . . . . Special Weapon . | . . . . Impact Weapon . | . . . . Slashing Weapon . | . . . . Piercing Weapon . | . . . . Special Melee Weapon . | . . . . Unidentified Prototypes . | . . . . Parts Lost 14 | . . 4 10 Power 1 | . . 1 . Propulsion 4 | . . 1 3 Utility 3 | . . . 3 Weapon 6 | . . 2 4 Highest Loss Streak 9 | . . 4 9 To Critical Strikes 1 | . . . 1 Average Slot Usage (%) 89 | . 99 72 46 Engine 11 | . 14 2 . Leg 25 | . 28 23 13 Device 5 | . 5 . 9 Storage 12 | . 14 14 6 Processor 8 | . 8 14 6 Energy Gun 11 | . 11 14 8 Ballistic Gun 13 | . 16 2 1 Peak Build Rating 11 | 6 9 9 11 Average Rating 7 | 5 7 6 6 On Entrance 5 | . 6 9 6 Naked Turns 24 | . . . 24 Heaviest Build 15 | 12 15 9 11 Greatest Support 20 | 20 20 20 20 Greatest Overweight (x) 1 | 1 1 . . Average Overweight (x) . | . . . . Largest Inventory Capacity 8 | 8 8 8 8 Average Capacity 7 | 7 8 8 6 Most Carried 8 | 2 8 8 7 Average Carried 6 | 1 6 7 6 Final Capacity 8 | 8 8 8 5 Final Carried 8 | 2 8 8 5 Class Distribution -------------------- 64% | Mutant 35% | Scavenger-Mutant Dominant Class ---------------- Mutant | -10/Materials Mutant | -10/Mines Mutant | -9/Materials Resources | -11 -10 -10 -9 ----------- Run | Yrd Mat Min Mat Matter Collected 794 | 227 502 39 26 Remotely . | . . . . Salvage Created 826 | . 673 84 69 Parts 43 | . 33 4 6 Haulers Intercepted 1 | . 1 . . Recyclers Shooed 1 | . 1 . . Parts Field Recycled . | . . . . Retrieved Matter . | . . . . Parts Self-Destructed . | . . . . Prevented . | . . . . Kills | -11 -10 -10 -9 ------- Run | Yrd Mat Min Mat Combat Hostiles Destroyed 22 | . 15 2 5 Melee 1 | . . . 1 Guns 18 | . 14 2 2 AOE 2 | . . . 2 Classes Destroyed 6 | . 6 . . Worker 1 | . 1 . . Hauler 1 | . 1 . . Recycler 1 | . 1 . . Watcher 3 | . 3 . . Swarmer 10 | . 6 . 4 Grunt 12 | . 9 2 1 Best Kill Streak 4 | . 4 2 3 Combat Bots Only 3 | . 3 2 3 Max Kills in Single Turn 2 | . 1 1 2 Gunslinging . | . . . . Exploded 2 | . . . 2 Melee 1 | . . . 1 Uniques/NPCs Destroyed . | . . . . Combat | -11 -10 -10 -9 -------- Run | Yrd Mat Min Mat Hostile Shots Fired 207 | . 89 36 82 Missed 65 | . 28 7 30 Damage Taken 1853 | . 674 370 809 Core 639 | . 112 125 402 Absorbed by Shields . | . . . . Core Remaining (%) 52 | 100 . 5 . Volleys Fired 109 | . 73 20 16 Largest 2 | . 2 2 2 Hottest 115 | . 115 115 95 Shots Fired 195 | . 146 27 22 Gun 195 | . 146 27 22 Cannon . | . . . . Launcher . | . . . . Special . | . . . . Kinetic 100 | . 85 9 6 Thermal 93 | . 61 18 14 Explosive . | . . . . Electromagnetic 2 | . . . 2 Robot Hit Streak 14 | . 14 12 7 Robot Miss Streak 4 | . 3 4 2 Penetration Max . | . . . . Secondary Targets 3 | . 2 . 1 Max Gunslinging Chain 1 | . 1 . 1 Shots Hit Robots 125 | . 89 19 17 Core Hits 41 | . 29 5 7 Critical Kills . | . . . . Critical Parts Destroyed 1 | . 1 . . Critical Strikes 3 | . 2 . 1 Burn 2 | . 1 . 1 Destroy 1 | . 1 . . Melee Attacks . | . . . . Impact . | . . . . Slashing . | . . . . Piercing . | . . . . Sneak Attacks . | . . . . Combat Hostiles . | . . . . Follow-up Attacks . | . . . . Damage Inflicted 1811 | . 1196 265 350 Guns 1639 | . 1194 265 180 Cannons . | . . . . Explosions 129 | . . . 129 Melee . | . . . . Ramming 43 | . 2 . 41 Kinetic 771 | . 641 83 47 Thermal 980 | . 553 182 245 Explosive . | . . . . Electromagnetic 17 | . . . 17 Impact . | . . . . Slashing . | . . . . Piercing . | . . . . Highest Corruption 10 | . 2 2 10 Average Corruption 2 | . 2 2 8 Corruption Purged . | . . . . Corruption Blocked . | . . . . Effects 14 | . 8 1 5 Message Errors 7 | . 4 1 2 Matter Fused 1 | . 1 . . Heat Flow Errors 2 | . 2 . . Parts Rejected 1 | . . . 1 Data Loss (major) 1 | . 1 . . Weapon Failures 2 | . . . 2 Overload Shots . | . . . . Overflow Damage 30 | . . . 30 Projectiles . | . . . . Explosions 27 | . . . 27 Melee 3 | . . . 3 Knockbacks . | . . . . Impact . | . . . . Kinetic . | . . . . Secondary . | . . . . Self-Inflicted Damage 170 | . . . 170 Shots 2 | . . . 2 Rammed 10 | . . . 10 Targets Rammed 11 | . 1 . 10 Kicked 1 | . 1 . . Crushed . | . . . . Highest Temperature 459 | . 431 459 1 Average Temperature 142 | . 111 260 1 Received Heat Transfer 633 | . 327 210 96 Effects 8 | . 3 5 . Shutdowns 2 | . 1 1 . Energy Bleed 1 | . 1 . . Interference 2 | . . 2 . Matter Decay 1 | . 1 . . Damage (major) 2 | . . 2 . Siege Activations . | . . . . Robots Corrupted . | . . . . Combat Hostiles . | . . . . Parts Fried . | . . . . Impact Corruptions 1 | . . . 1 Robots Melted 1 | . 1 . . Combat Hostiles 1 | . 1 . . Parts Melted 6 | . 5 1 . Heat Transferred 2633 | . 1554 481 598 Parts Sabotaged . | . . . . Parts Stolen . | . . . . Parts Stripped . | . . . . Power Chain Reactions 2 | . . . 2 Alert | -11 -10 -10 -9 ------- Run | Yrd Mat Min Mat Peak Influence 339 | . 339 98 183 Initial 88 | . . 88 37 Average 91 | . 97 88 97 Maximum Alert Level 1 | . 1 . . Low Security (%) 81 | 100 74 100 100 Level 1 18 | . 25 . . Level 2 . | . . . . Level 3 . | . . . . Level 4 . | . . . . Level 5 . | . . . . High Security . | . . . . Max Security . | . . . . Squads Dispatched 7 | . 5 . 2 Investigation 3 | . 3 . . Extermination . | . . . . Reinforcement 4 | . 2 . 2 Assault . | . . . . Garrison . | . . . . Intercept . | . . . . Searches Triggered . | . . . . Construction Impeded . | . . . . Haulers Reinforced . | . . . . Active Scanning Responses . | . . . . Cargo Convoy Interrupts . | . . . . Stealth | -11 -10 -10 -9 --------- Run | Yrd Mat Min Mat Distress Signals 5 | . 2 . 3 Communications Jammed . | . . . . Distress Signals . | . . . . Times Spotted 42 | . 26 2 14 Peak Tracking Total 9 | . 4 2 9 Tactical Retreats 4 | . 2 . 2 Traps | -11 -10 -10 -9 ------- Run | Yrd Mat Min Mat Traps Triggered 3 | . 3 . . Indirectly . | . . . . Trap Hack Attempts . | . . . . Triggered . | . . . . Disarmed . | . . . . Reprogrammed . | . . . . Reused . | . . . . Traps Extracted . | . . . . Installed . | . . . . Triggered . | . . . . Machines | -11 -10 -10 -9 ---------- Run | Yrd Mat Min Mat Machines Disabled 3 | . 1 . 2 Max in Single Turn 2 | . 1 . 2 Machines Repaired . | . . . . Machines Dismantled . | . . . . Machines Sabotaged . | . . . . Overloaded Fab Kills . | . . . . Hacking | -11 -10 -10 -9 --------- Run | Yrd Mat Min Mat Machines Accessed 8 | . 7 . 1 Terminals 6 | . 5 . 1 Fabricators . | . . . . Repair Stations . | . . . . Recycling Units 2 | . 2 . . Scanalyzers . | . . . . Garrison Access . | . . . . Total Hacks 14 | . 13 . 1 Successful 5 | . 4 . 1 Failed 9 | . 9 . . Catastrophic 4 | . 4 . . Database Lockouts . | . . . . Manual 1 | . 1 . . Terminals 10 | . 9 . 1 Fabricators . | . . . . Repair Stations . | . . . . Recycling Units 4 | . 4 . . Scanalyzers . | . . . . Garrison Access . | . . . . Terminal Hacks 4 | . 3 . 1 Record 1 | . 1 . . Prototype ID Bank 1 | . . . 1 Alert Level 1 | . 1 . . Zone Layout 1 | . 1 . . Fabricator Hacks . | . . . . Repair Station Hacks . | . . . . Recycling Unit Hacks 1 | . 1 . . Report Inventory 1 | . 1 . . Scanalyzer . | . . . . Garrison Access Hacks . | . . . . Unauthorized Hacks . | . . . . Terminals . | . . . . Fabricators . | . . . . Repair Stations . | . . . . Recycling Units . | . . . . Scanalyzers . | . . . . Garrison Access . | . . . . Data Cores Recovered . | . . . . Used . | . . . . Hacking Detections 4 | . 4 . . Full Trace Events 3 | . 3 . . Feedback Events . | . . . . Feedback Blocked . | . . . . Robot Schematics Acquired . | . . . . Robots Built . | . . . . Authchips . | . . . . Time . | . . . . Total Robot Build Rating . | . . . . Part Schematics Acquired . | . . . . Parts Built . | . . . . Authchips . | . . . . Time . | . . . . Total Part Build Rating . | . . . . Parts Repaired . | . . . . Time . | . . . . Parts Recycled . | . . . . Recycled Matter . | . . . . Retrieved Matter . | . . . . Retrieved Components . | . . . . Parts Scanalyzed . | . . . . Part Schematics Acquired . | . . . . Parts Damaged . | . . . . Bothacking | -11 -10 -10 -9 ------------ Run | Yrd Mat Min Mat Used RIF Installer . | . . . . Robots Hacked . | . . . . Non-combat . | . . . . Combat . | . . . . Robot Hacks Applied . | . . . . Relay Couplers Released . | . . . . Fabnet Peak Effective % . | . . . . Robots Rewired . | . . . . Allies Hacked . | . . . . Hacks Repelled . | . . . . Allies | -11 -10 -10 -9 -------- Run | Yrd Mat Min Mat Total Allies . | . . . . Largest Group . | . . . . Highest-Rated Group . | . . . . Highest-Rated Ally . | . . . . Total Orders . | . . . . Ally Attacks . | . . . . Total Damage . | . . . . Kills . | . . . . Allies Corrupted . | . . . . Allies Melted . | . . . . Intel | -11 -10 -10 -9 ------- Run | Yrd Mat Min Mat Robot Analysis Total . | . . . . Derelict Logs Recovered . | . . . . Drone Launches . | . . . . Drone Recoveries . | . . . . Exploration | -11 -10 -10 -9 ------------- Run | Yrd Mat Min Mat Turns Passed 1769 | 91 1313 154 211 Spaces Moved 1104 | 48 793 82 181 Core 100 | 5 . . 95 Treads 1 | 1 . . . Legs 994 | 42 793 82 77 Wheels . | . . . . Hover 8 | . . . 8 Flight 1 | . . . 1 Fastest Speed 40 | 50 120 120 40 Average Speed 118 | 164 124 120 80 Slowest Speed 190 | 190 190 120 120 Overloaded Moves . | . . . . Propulsion Burnouts . | . . . . Robots Hopped . | . . . . Cave-ins Triggered . | . . . . Exploration Rate (%) 37 | 4 99 27 21 Regions Visited 3 Branch Regions 1 Pre-discovered Areas . | . . . . Known Exits Taken 2 | . 1 1 . Unknown Exits Taken 1 | 1 . . . Scrap Searched 1 | . . 1 . Spaces Dug . | . . . . Terrain Destroyed 30 | . . . 30 Melee . | . . . . Projectile . | . . . . AOE 30 | . . . 30 Terrain Rammed . | . . . . Walls Destroyed . | . . . . Machines Disabled . | . . . . Actions | -11 -10 -10 -9 --------- Run | Yrd Mat Min Mat Total 1369 | 58 977 113 221 Wait 81 | . 70 5 6 Move 1101 | 47 792 81 181 Hop . | . . . . Pick Up 15 | 2 10 3 . Fast Attach 16 | 7 2 1 6 Attach 4 | . 1 1 2 Detach 1 | 1 . . . Swap 12 | . 12 . . Drop 19 | 1 16 2 . Fire 109 | . 73 20 16 Melee . | . . . . Ram 10 | . . . 10 Kick 1 | . 1 . . Crush . | . . . . Escape Stasis . | . . . . Rewire . | . . . . Trap . | . . . . Miscellaneous . | . . . . Route ------- -11/Scrapyard -10/Materials (discovered 4 exits: *Mat x3 / *Min) -10/Mines -9/Materials History --------- Turn | Location | Event 52 | -11/Scrapyard | Discovered new exit (range 15) 92 | -11/Scrapyard | Entered Materials 313 | -10/Materials | Build established: Mutant 318 | -10/Materials | Discovered new exit (range 14) 469 | -10/Materials | Discovered new exit (range 16) 653 | -10/Materials | Identified exit to Mines 749 | -10/Materials | Discovered new exit (range 16) 766 | -10/Materials | Identified exit to Materials 1117 | -10/Materials | Discovered exit to Materials (range 15) 1221 | -10/Materials | Build established: Scavenger-Mutant 1405 | -10/Materials | Entered Mines 1414 | -10/Mines | Core integrity fell below 50% 1428 | -10/Mines | Core integrity fell below 20% 1448 | -10/Mines | Discovered exit to Materials (range 15) 1493 | -10/Mines | Lost 4 parts (1p1n2w) 1559 | -10/Mines | Entered Materials 1559 | -9/Materials | Evolved 2 slots: Utility x1, Weapon x1 1716 | -9/Materials | Core integrity fell below 50% 1733 | -9/Materials | Lost 9 parts (2n3u4w) 1738 | -9/Materials | System corruption reached 10% 1742 | -9/Materials | Core integrity fell below 20% 1770 | -9/Materials | Destroyed by G-34 Mercenary with Small Laser Last Messages --------------- 01727_ System corrupted: Imp. Heat Sink rejected. 01732_ Slammed into S-10 Pest. 01735_ Destroyed Lgt. Ion Engine. 01735_ S-10 Pest system corrupted by crushing effect. 01736_ Slammed into S-10 Pest. 01737_ Destabilizing: System corrupted (+2). 01738_ Slammed into S-10 Pest. 01741_ S-10 Pest destroyed. [Achievement: Fist Fight] 01743_ Acquired Flight Unit. 01744_ Acquired 10 matter. 01744_ Flight Unit destroyed. 01751_ 3KEA&QY80VT% 46H,A6U,B 01752_ Acquired Propulsion Shielding. 01752_ ALERT: Hostiles spotted, dispatching reinforcements to Terminal M007. 01764_ Acquired Imp. Hover Unit. 01770_ E3NQUKLQLYJ TA2GC